fUSD/lending_fUSD_20240517
["ID","MTS","AMOUNT","RATE_DAILY","PERIOD"]
[327261222,1715944242623,-271.71791069,0.00012409,2]
[327261223,1715944242633,-527.39,0.00012409,2]
[327261224,1715944242642,-500.0,0.00012409,2]
[327261225,1715944242651,-2959.1,0.00012409,2]
[327261226,1715944242662,-500.0,0.00012409,2]
[327261227,1715944242671,-500.0,0.00012409,2]
[327261228,1715944242681,-500.0,0.00012409,2]
[327261229,1715944242690,-500.0,0.00012409,2]
[327261230,1715944242700,-586.54,0.00012409,2]
[327261232,1715944242709,-500.0,0.00012409,2]
[327261233,1715944242718,-500.0,0.00012409,2]
[327261234,1715944242727,-434.26015936,0.00012409,2]
[327261235,1715944242736,-1784.09,0.00012409,2]
[327261236,1715944242746,-500.0,0.00012409,2]
[327261237,1715944242755,-500.0,0.00012409,2]
[327261238,1715944242765,-500.0,0.00012409,2]
[327261239,1715944242774,-516.27,0.00012409,2]
[327261240,1715944242784,-500.0,0.00012409,2]
[327261241,1715944242794,-500.0,0.00012409,2]
[327261242,1715944242803,-500.0,0.00012409,2]
[327261243,1715944242813,-500.0,0.00012409,2]
[327261244,1715944242823,-500.0,0.00012409,2]
[327261245,1715944242833,-500.0,0.00012409,2]
[327261246,1715944242842,-527.41,0.00012409,2]
[327261247,1715944242852,-666.88,0.00012409,2]
[327261248,1715944242861,-500.0,0.00012409,2]
[327261249,1715944242871,-500.0,0.00012409,2]
[327261250,1715944242881,-500.0,0.00012409,2]
[327261251,1715944242890,-500.0,0.00012409,2]
[327261252,1715944242900,-24646.96498353,0.0001241,2]
[327261257,1715944243251,-5488.69717508,0.0001241,2]
[327261258,1715944243263,-17783.54634882,0.0001241,2]
[327261259,1715944243272,-100000.0,0.0001241,2]
[327261260,1715944243282,-2695.57994,0.0001242,2]
[327261261,1715944243291,-1025.12986454,0.00012456,2]
[327261262,1715944243300,-600.0,0.000125,4]
[327261264,1715944243310,-10000.0,0.00012547,2]
[327261266,1715944243319,-367.17,0.00012556,2]
[327261270,1715944243328,-230.3381183,0.00012564,2]
[327261274,1715944243337,-1025.12986454,0.00012567,2]
[327261278,1715944243347,-600.0,0.000126,4]
[327261282,1715944243356,-1509.0,0.000126,2]
[327261285,1715944243366,-200.0,0.00012608,2]
[327261286,1715944243376,-275.28,0.00012639,2]
[327261287,1715944243385,-383.65,0.00012646,2]
[327261288,1715944243394,-500.0,0.00012646,2]
[327261289,1715944243403,-500.0,0.00012646,2]
[327261290,1715944243413,-500.0,0.00012646,2]
[327261291,1715944243422,-500.0,0.00012646,2]
[327261292,1715944243431,-500.0,0.00012646,2]
[327261293,1715944243440,-500.0,0.00012646,2]
[327261294,1715944243450,-500.0,0.00012646,2]
[327261295,1715944243459,-500.0,0.00012646,2]
[327261296,1715944243469,-500.0,0.00012646,2]
[327261297,1715944243478,-500.0,0.00012646,2]
[327261298,1715944243487,-500.0,0.00012646,2]
[327261299,1715944243496,-500.0,0.00012646,2]
[327261300,1715944243506,-500.0,0.00012646,2]
[327261301,1715944243520,-500.0,0.00012646,2]
[327261302,1715944243530,-240.21,0.00012646,2]
[327261303,1715944243539,-500.0,0.00012646,2]
[327261304,1715944243549,-500.0,0.00012646,2]
[327261305,1715944243558,-500.0,0.00012646,2]
[327261306,1715944243568,-500.0,0.00012646,2]
[327261307,1715944243577,-500.0,0.00012646,2]
[327261308,1715944243588,-500.0,0.00012646,2]
[327261309,1715944243598,-246.83,0.00012646,2]
[327261310,1715944243608,-209.18735126,0.00012646,2]
[327261311,1715944243628,-290.81264874,0.00012646,2]
[327261312,1715944243638,-278.63623126,0.00012646,2]
[327261313,1715944243649,-86.01376874,0.00012646,2]
[327261314,1715944243659,-500.0,0.00012646,2]
[327261315,1715944243669,-500.0,0.00012646,2]
[327261316,1715944243678,-312.28,0.00012646,2]
[327261318,1715944243688,-169.11,0.00012646,2]
[327261320,1715944243697,-22.09623126,0.00012646,2]
[327261322,1715944243708,-300.55934443,0.00012646,2]
[327261324,1715944243717,-215.93,0.00012646,2]
[327261325,1715944243727,-192.08,0.00012646,2]
[327261326,1715944243736,-513.54517026,0.00012646,2]
[327261327,1715944243745,-500.0,0.00012646,2]
[327261328,1715944243754,-504.245088,0.00012646,2]
[327261329,1715944243765,-268.5682211,0.00012646,2]
[327261330,1715944243775,-500.0,0.00012646,2]
[327261331,1715944243785,-500.0,0.00012646,2]
[327261332,1715944243799,-500.0,0.00012646,2]
[327261333,1715944243808,-500.0,0.00012646,2]
[327261334,1715944243818,-500.0,0.00012646,2]
[327261335,1715944243827,-500.0,0.00012646,2]
[327261336,1715944243836,-500.0,0.00012646,2]
[327261337,1715944243846,-500.0,0.00012646,2]
[327261338,1715944243855,-500.0,0.00012646,2]
[327261339,1715944243865,-524.34569115,0.00012646,2]
[327261340,1715944243874,-500.0,0.00012646,2]
[327261341,1715944243884,-500.0,0.00012646,2]
[327261342,1715944243894,-500.0,0.00012646,2]
[327261343,1715944243904,-500.0,0.00012646,2]
[327261344,1715944243915,-500.0,0.00012646,2]
[327261345,1715944243926,-500.0,0.00012646,2]
[327261346,1715944243935,-500.0,0.00012646,2]
[327261347,1715944243944,-500.0,0.00012646,2]
[327261348,1715944243954,-500.0,0.00012646,2]
[327261349,1715944243964,-500.0,0.00012646,2]
[327261350,1715944243974,-500.0,0.00012646,2]
[327261351,1715944243983,-500.0,0.00012646,2]
[327261354,1715944243994,-844.31,0.00012646,2]
[327261357,1715944244003,-500.0,0.00012646,2]
[327261359,1715944244013,-500.0,0.00012646,2]
[327261362,1715944244023,-164.94599329,0.00012646,2]
[327261363,1715944244032,-586.54,0.00012646,2]
[327261365,1715944244041,-593.9,0.00012646,2]
[327261366,1715944244051,-391.03049177,0.00012646,2]
[327261368,1715944244064,-108.96950823,0.00012646,2]
[327261369,1715944244076,-500.0,0.00012646,2]
[327261370,1715944244085,-500.0,0.00012646,2]
[327261371,1715944244094,-500.0,0.00012646,2]
[327261372,1715944244103,-1784.09,0.00012646,2]
[327261373,1715944244113,-500.0,0.00012646,2]
[327261374,1715944244122,-608.28,0.00012646,2]
[327261375,1715944244132,-500.0,0.00012646,2]
[327261376,1715944244143,-478.14081679,0.00012646,2]
[327261377,1715944244153,-500.0,0.00012646,2]
[327261378,1715944244164,-500.0,0.00012646,2]
[327261379,1715944244174,-500.0,0.00012646,2]
[327261380,1715944244183,-500.0,0.00012646,2]
[327261381,1715944244193,-228.04387678,0.00012646,2]
[327261382,1715944244202,-227.21320887,0.00012646,2]
[327261383,1715944244212,-500.0,0.00012646,2]
[327261384,1715944244221,-500.0,0.00012646,2]
[327261385,1715944244231,-500.0,0.00012646,2]
[327261386,1715944244242,-500.0,0.00012646,2]
[327261387,1715944244251,-500.0,0.00012646,2]
[327261388,1715944244260,-500.0,0.00012646,2]
[327261389,1715944244269,-500.0,0.00012646,2]
[327261390,1715944244278,-973.0,0.00012647,2]
[327261391,1715944244287,-1399.0,0.00012647,2]
[327261392,1715944244296,-2201.513,0.00012647,2]
[327261393,1715944244305,-2201.513,0.00012647,2]
[327261394,1715944244314,-1262.0,0.00012647,2]
[327261395,1715944244324,-1791.0,0.00012647,2]
[327261396,1715944244333,-544.0,0.00012647,2]
[327261397,1715944244343,-1225.0,0.00012647,2]
[327261398,1715944244352,-422.351,0.00012647,2]
[327261399,1715944244362,-612.419,0.00012647,2]
[327261400,1715944244371,-810.0,0.00012647,2]
[327261401,1715944244380,-439.0,0.00012647,2]
[327261402,1715944244390,-165.197,0.00012647,2]
[327261403,1715944244399,-2351.0,0.00012647,2]
[327261404,1715944244408,-155.26,0.00012647,2]
[327261405,1715944244419,-1647.0,0.00012647,2]
[327261406,1715944244428,-215.159,0.00012647,2]
[327261407,1715944244438,-1138.0,0.00012647,2]
[327261408,1715944244447,-2420.25146608,0.00012647,2]
[327261409,1715944244472,-604.79368831,0.00012647,2]
[327261410,1715944244629,-664.53,0.00012647,2]
[327261411,1715944244641,-2217.42484561,0.00012647,2]
[327261412,1715944244651,-5751.0,0.00012647,2]
[327261413,1715944244660,-293.679,0.00012647,2]
[327261414,1715944244671,-27459.10391027,0.00012647,2]
[327261415,1715944244693,-266.85514883,0.00012647,2]
[327261416,1715944244704,-310.08322448,0.00012647,2]
[327261417,1715944244716,-9556.71327628,0.00012647,2]
[327261418,1715944244727,-265.24444014,0.00012647,2]
[327261419,1715944244736,-1047.0,0.00012647,2]
[327261420,1715944244745,-1062.256,0.00012647,2]
[327261421,1715944244755,-165.577783,0.00012664,2]
[327261422,1715944244764,-1025.12986454,0.00012678,2]
[327261423,1715944244773,-600.0,0.000127,4]
[327261424,1715944244783,-754.12,0.00012715,2]
[327261425,1715944244793,-633.18,0.00012715,2]
[327261426,1715944244802,-500.0,0.00012715,2]
[327261427,1715944244811,-1039.01,0.00012715,2]
[327261428,1715944244820,-500.0,0.00012715,2]
[327261429,1715944244830,-500.0,0.00012715,2]
[327261430,1715944244839,-500.0,0.00012715,2]
[327261431,1715944244849,-500.0,0.00012715,2]
[327261432,1715944244859,-39.3189526,0.00012715,2]
[327261433,1715944244870,-460.6810474,0.00012715,2]
[327261434,1715944244880,-527.39,0.00012715,2]
[327261435,1715944244890,-2959.1,0.00012715,2]
[327261436,1715944244899,-500.0,0.00012715,2]
[327261437,1715944244909,-500.0,0.00012715,2]
[327261438,1715944244920,-500.0,0.00012715,2]
[327261439,1715944244929,-516.27,0.00012715,2]
[327261440,1715944244938,-367.49832029,0.00012715,2]
[327261460,1715944246281,-547.84176427,0.00011954,2]
[327261461,1715944246294,-1041.03750316,0.00011954,2]
[327261462,1715944246308,-500.0,0.00012328,2]
[327261463,1715944246318,-659.86,0.00012328,2]
[327261464,1715944246329,-659.86,0.00012409,2]
[327261465,1715944246339,-500.0,0.00012409,2]
[327261466,1715944246349,-659.86,0.00012646,2]
[327261467,1715944246359,-132.50167971,0.00012715,2]
[327261468,1715944246369,-500.0,0.00012715,2]
[327261469,1715944246378,-500.0,0.00012715,2]
[327261470,1715944246388,-527.41,0.00012715,2]
[327261471,1715944246397,-666.88,0.00012715,2]
[327261472,1715944246406,-500.0,0.00012715,2]
[327261473,1715944246417,-230.3381183,0.00012732,2]
[327261474,1715944246427,-500.0,0.00012769,2]
[327261475,1715944246436,-699.95,0.00012769,2]
[327261476,1715944246445,-170.65577773,0.00012769,2]
[327261477,1715944246455,-500.0,0.00012769,2]
[327261478,1715944246464,-500.0,0.00012769,2]
[327261479,1715944246474,-5201.3234,0.0001277,2]
[327261480,1715944246483,-65635.66341547,0.0001277,2]
[327261481,1715944246531,-500.0,0.00012769,2]
[327261482,1715944246541,-7461.8201508,0.0001277,2]
[327261483,1715944246554,-26902.51643373,0.0001277,2]
[327261484,1715944246563,-1000.0,0.0001277,2]
[327261485,1715944246572,-1025.12986454,0.00012789,2]
[327261486,1715944246581,-7515.65951118,0.00012795,2]
[327261487,1715944246594,-1430.5439655,0.00012797,2]
[327261488,1715944246605,-980.0,0.000128,4]
[327261489,1715944246614,-7515.65951113,0.00012805,2]
[327261490,1715944246623,-7515.65951113,0.00012814,2]
[327261491,1715944246632,-7515.65951113,0.00012824,2]
[327261492,1715944246641,-7515.65951113,0.00012833,2]
[327261493,1715944246650,-7515.65951113,0.00012843,2]
[327261494,1715944246659,-7515.65951113,0.00012852,2]
[327261495,1715944246671,-7515.65951113,0.00012862,2]
[327261497,1715944246681,-155.0,0.00012866,2]
[327261498,1715944246690,-409.26681316,0.00012866,2]
[327261499,1715944246699,-656.01389756,0.00012868,2]
[327261500,1715944246709,-201.91969004,0.00012868,2]
[327261501,1715944246718,-11733.9768765,0.00012868,2]
[327261502,1715944246728,-155.0,0.00012868,2]
[327261503,1715944246737,-500.0,0.00012868,2]
[327261504,1715944246746,-500.0,0.00012868,2]
[327261505,1715944246755,-449.07,0.00012868,2]
[327261506,1715944246765,-500.0,0.00012868,2]
[327261507,1715944246774,-500.0,0.00012868,2]
[327261508,1715944246784,-500.0,0.00012868,2]
[327261509,1715944246793,-500.0,0.00012868,2]
[327261510,1715944246802,-500.0,0.00012868,2]
[327261511,1715944246811,-500.0,0.00012868,2]
[327261512,1715944246820,-500.0,0.00012868,2]
[327261513,1715944246829,-543.04944031,0.00012868,2]
[327261514,1715944246838,-500.0,0.00012868,2]
[327261515,1715944246848,-500.0,0.00012868,2]
[327261516,1715944246858,-500.0,0.00012868,2]
[327261517,1715944246867,-500.0,0.00012868,2]
[327261518,1715944246877,-500.0,0.00012868,2]
[327261519,1715944246887,-503.98589574,0.00012868,2]
[327261520,1715944246896,-205.61420616,0.00012868,2]
[327261521,1715944246905,-598.11632064,0.00012868,2]
[327261522,1715944246915,-403.5312119,0.00012868,2]
[327261523,1715944246923,-500.0,0.00012868,2]
[327261524,1715944246933,-420.2,0.00012868,2]
[327261525,1715944246943,-275.90765548,0.00012868,2]
[327261526,1715944246952,-844.31,0.00012868,2]
[327261527,1715944246962,-232.01864193,0.00012868,2]
[327261528,1715944246972,-500.0,0.00012868,2]
[327261529,1715944246981,-500.0,0.00012868,2]
[327261530,1715944246991,-500.0,0.00012868,2]
[327261531,1715944247001,-500.0,0.00012868,2]
[327261532,1715944247010,-322.30973979,0.00012868,2]
[327261533,1715944247020,-416.65,0.00012868,2]
[327261534,1715944247030,-563.23283292,0.00012868,2]
[327261535,1715944247039,-569.86571767,0.00012868,2]
[327261536,1715944247048,-277.53169658,0.00012868,2]
[327261537,1715944247058,-500.0,0.00012868,2]
[327261538,1715944247067,-344.60596673,0.00012869,2]
[327261539,1715944247076,-500.0,0.00012869,2]
[327261540,1715944247086,-500.0,0.00012869,2]
[327261541,1715944247095,-500.0,0.00012869,2]
[327261542,1715944247105,-500.0,0.00012869,2]
[327261543,1715944247114,-500.0,0.00012869,2]
[327261544,1715944247123,-586.54,0.00012869,2]
[327261545,1715944247132,-500.0,0.00012869,2]
[327261546,1715944247142,-500.0,0.00012869,2]
[327261547,1715944247151,-1784.09,0.00012869,2]
[327261548,1715944247160,-500.0,0.00012869,2]
[327261549,1715944247171,-500.0,0.00012869,2]
[327261550,1715944247180,-500.0,0.00012869,2]
[327261551,1715944247189,-500.0,0.00012869,2]
[327261552,1715944247199,-500.0,0.00012869,2]
[327261553,1715944247208,-659.86,0.00012869,2]
[327261554,1715944247218,-678.17,0.0001287,2]
[327261555,1715944247227,-1444.69704393,0.0001287,2]
[327261558,1715944633177,151.0,0.00020469,120]
[327261559,1715944958228,151.0,0.00020469,120]
[327261562,1715945205053,151.0,0.00020469,120]
[327261568,1715945432169,-380.04295626,9.455e-05,2]
[327261572,1715945432408,-402.38696123,9.455e-05,2]
[327261573,1715945432418,-155.0,9.456e-05,2]
[327261574,1715945432428,-1076.33,9.457e-05,2]
[327261575,1715945432439,-1229.57930403,0.0001,2]
[327261576,1715945432452,-2697.48051752,0.0001,2]
[327261611,1715945438571,-1972.94017845,0.0001,2]
[327261612,1715945438581,-200.0,0.00011,2]
[327261613,1715945438590,-250.0,0.00011285,2]
[327261614,1715945438601,-2145.0,0.00011326,2]
[327261615,1715945438611,-1206.27,0.00011405,2]
[327261616,1715945438621,-196.9,0.00011426,2]
[327261617,1715945438631,-220.3,0.00011528,2]
[327261618,1715945438642,-250.0,0.00011548,2]
[327261619,1715945438652,-4840.00016381,0.00011556,2]
[327261620,1715945438664,-1295.09983619,0.00011556,2]
[327261621,1715945438674,-390.5,0.0001169,2]
[327261622,1715945438684,-172.21,0.00011709,2]
[327261623,1715945438694,-1076.33,0.00011721,2]
[327261624,1715945438704,-806.9,0.00011762,2]
[327261625,1715945438714,-1399.33222271,0.00012,2]
[327261626,1715945438735,-3825.14001968,0.00012,2]
[327261627,1715945438752,-10536.60312062,0.00012079,2]
[327261628,1715945438767,-680.22879089,0.00012081,2]
[327261629,1715945438782,-3656.884,0.00012183,2]
[327261630,1715945438796,-3672.339,0.0001225,2]
[327261631,1715945438810,-3700.478,0.00012317,2]
[327261632,1715945438821,-500.0,0.00012328,2]
[327261633,1715945438834,-500.0,0.00012328,2]
[327261634,1715945438847,-500.0,0.00012328,2]
[327261635,1715945438863,-500.0,0.00012328,2]
[327261636,1715945438877,-500.0,0.00012328,2]
[327261637,1715945438890,-500.0,0.00012328,2]
[327261638,1715945438906,-500.0,0.00012328,2]
[327261639,1715945438919,-3000.0,0.00012328,2]
[327261640,1715945438931,-500.0,0.00012328,2]
[327261641,1715945438944,-500.0,0.00012328,2]
[327261642,1715945438957,-500.0,0.00012328,2]
[327261643,1715945438971,-1022.0,0.000124,2]
[327261645,1715945438985,-2032.70609985,0.00012409,2]
[327261648,1715945438998,-511.75499436,0.00012409,2]
[327261649,1715945439011,-4895.0,0.00012568,2]
[327261650,1715945439023,-1651.86682141,0.0001259,2]
[327261651,1715945439035,-1944.44630475,0.00012613,2]
[327261652,1715945439050,-205.02597298,0.00012679,2]
[327261653,1715945439065,-7500.0,0.0001268,2]
[327261654,1715945439079,-153.55874554,0.00012692,2]
[327261655,1715945439094,-198.54546408,0.00012701,2]
[327261656,1715945439107,-205.0259729,0.00012704,2]
[327261657,1715945439119,-205.0259729,0.00012728,2]
[327261658,1715945439131,-2746.31661,0.0001274,2]
[327261659,1715945439144,-13064.82054492,0.0001275,2]
[327261660,1715945439155,-205.0259729,0.00012753,2]
[327261661,1715945439166,-36621.0015,0.0001277,2]
[327261662,1715945439180,-205.0259729,0.00012777,2]
[327261663,1715945439191,-500.0,0.00012778,2]
[327261664,1715945439204,-500.0,0.00012778,2]
[327261665,1715945439218,-500.0,0.00012778,2]
[327261666,1715945439232,-537.66,0.00012778,2]
[327261667,1715945439246,-500.0,0.00012778,2]
[327261668,1715945439258,-500.0,0.00012778,2]
[327261669,1715945439271,-500.0,0.00012778,2]
[327261670,1715945439285,-500.0,0.00012778,2]
[327261671,1715945439300,-500.0,0.00012778,2]
[327261672,1715945439315,-914.4,0.00012778,2]
[327261674,1715945439329,-537.37856684,0.00012779,2]
[327261675,1715945439342,-500.0,0.00012779,2]
[327261676,1715945439354,-500.0,0.00012779,2]
[327261677,1715945439365,-500.0,0.00012779,2]
[327261678,1715945439376,-500.0,0.00012779,2]
[327261679,1715945439387,-55.57010059,0.00012779,2]
[327261680,1715945439791,-444.42989941,0.00012779,2]
[327261681,1715945439803,-500.0,0.00012779,2]
[327261682,1715945439815,-389.13039446,0.00012779,2]
[327261683,1715945439828,-500.0,0.00012779,2]
[327261684,1715945439840,-500.0,0.00012779,2]
[327261685,1715945439851,-500.0,0.00012779,2]
[327261686,1715945439863,-384.42,0.00012779,2]
[327261687,1715945439874,-511.81449438,0.00012779,2]
[327261688,1715945439886,-536.03693777,0.00012779,2]
[327261689,1715945439901,-500.0,0.00012779,2]
[327261690,1715945439912,-500.0,0.00012779,2]
[327261691,1715945439924,-500.0,0.00012779,2]
[327261692,1715945439936,-500.0,0.00012779,2]
[327261693,1715945439947,-500.0,0.00012779,2]
[327261694,1715945439958,-279.72567193,0.00012779,2]
[327261695,1715945439971,-500.0,0.00012779,2]
[327261696,1715945439983,-500.0,0.00012779,2]
[327261697,1715945439994,-540.95880382,0.00012779,2]
[327261698,1715945440005,-500.0,0.00012779,2]
[327261699,1715945440017,-500.0,0.00012779,2]
[327261700,1715945440028,-500.0,0.00012779,2]
[327261701,1715945440040,-500.0,0.00012779,2]
[327261702,1715945440051,-500.0,0.00012779,2]
[327261703,1715945440062,-500.0,0.00012779,2]
[327261704,1715945440074,-500.0,0.00012779,2]
[327261705,1715945440085,-500.0,0.00012779,2]
[327261706,1715945440097,-313.50211148,0.00012779,2]
[327261707,1715945440109,-500.0,0.00012779,2]
[327261708,1715945440121,-440.54,0.00012779,2]
[327261709,1715945440133,-500.0,0.00012779,2]
[327261710,1715945440145,-500.0,0.00012779,2]
[327261711,1715945440156,-553.60378137,0.00012779,2]
[327261712,1715945440168,-500.0,0.00012779,2]
[327261713,1715945440181,-522.16192163,0.00012779,2]
[327261714,1715945440193,-500.0,0.00012779,2]
[327261715,1715945440205,-524.52626197,0.00012779,2]
[327261716,1715945440218,-500.0,0.00012779,2]
[327261717,1715945440230,-500.0,0.00012779,2]
[327261718,1715945440241,-500.0,0.00012779,2]
[327261719,1715945440252,-500.0,0.00012779,2]
[327261720,1715945440264,-500.0,0.00012779,2]
[327261721,1715945440277,-500.0,0.00012779,2]
[327261722,1715945440289,-581.3,0.00012779,2]
[327261723,1715945440301,-500.0,0.00012779,2]
[327261724,1715945440312,-225.25,0.00012779,2]
[327261725,1715945440324,-606.8,0.00012779,2]
[327261726,1715945440336,-237.37804278,0.00012779,2]
[327261727,1715945440348,-500.0,0.00012779,2]
[327261728,1715945440361,-500.0,0.00012779,2]
[327261729,1715945440373,-500.0,0.00012779,2]
[327261730,1715945440386,-670.79,0.00012779,2]
[327261731,1715945440397,-500.0,0.00012779,2]
[327261732,1715945440409,-995.72,0.00012779,2]
[327261733,1715945440422,-1142.51,0.00012779,2]
[327261734,1715945440433,-661.14,0.00012779,2]
[327261735,1715945440444,-500.0,0.00012779,2]
[327261736,1715945440456,-500.0,0.00012779,2]
[327261737,1715945440468,-200.07595457,0.00012779,2]
[327261738,1715945440481,-500.0,0.00012779,2]
[327261739,1715945440493,-500.0,0.00012779,2]
[327261740,1715945440504,-500.0,0.00012779,2]
[327261742,1715945440516,-500.0,0.00012779,2]
[327261744,1715945440527,-500.0,0.00012779,2]
[327261745,1715945440539,-500.0,0.00012779,2]
[327261746,1715945440551,-361.32173455,0.00012779,2]
[327261747,1715945440708,-146.57826545,0.00012779,2]
[327261748,1715945440719,-500.0,0.00012779,2]
[327261749,1715945440730,-500.0,0.00012779,2]
[327261750,1715945440740,-647.24,0.00012779,2]
[327261751,1715945440751,-313.33590894,0.00012779,2]
[327261752,1715945440761,-500.0,0.00012779,2]
[327261753,1715945440771,-500.0,0.00012779,2]
[327261754,1715945440782,-500.0,0.00012779,2]
[327261755,1715945440792,-316.08,0.00012779,2]
[327261756,1715945441097,-500.0,0.00012779,2]
[327261757,1715945441115,-166.9435463,0.00012779,2]
[327261758,1715945441183,-333.0564537,0.00012779,2]
[327261759,1715945441193,-349.86142781,0.00012779,2]
[327261760,1715945441204,-150.13857219,0.00012779,2]
[327261761,1715945441214,-284.34142781,0.00012779,2]
[327261762,1715945441227,-215.65857219,0.00012779,2]
[327261763,1715945441237,-296.15592219,0.00012779,2]
[327261786,1715945443313,-203.84407781,0.00012779,2]
[327261787,1715945443323,-500.0,0.00012779,2]
[327261789,1715945443333,-868.02,0.00012779,2]
[327261791,1715945443342,-500.0,0.00012779,2]
[327261793,1715945443352,-500.0,0.00012779,2]
[327261795,1715945443361,-500.0,0.00012779,2]
[327261797,1715945443370,-500.0,0.00012779,2]
[327261799,1715945443379,-500.0,0.00012779,2]
[327261800,1715945443389,-4483.34,0.00012779,2]
[327261801,1715945443398,-162.43,0.00012779,2]
[327261802,1715945443408,-500.0,0.00012779,2]
[327261804,1715945443418,-500.0,0.00012779,2]
[327261806,1715945443427,-773.95,0.00012779,2]
[327261808,1715945443437,-500.0,0.00012779,2]
[327261810,1715945443446,-784.72,0.00012779,2]
[327261812,1715945443455,-500.0,0.00012779,2]
[327261814,1715945443465,-500.0,0.00012779,2]
[327261815,1715945443474,-632.50271526,0.00012779,2]
[327261816,1715945443484,-500.0,0.00012779,2]
[327261817,1715945443494,-500.0,0.00012779,2]
[327261818,1715945443503,-500.0,0.00012779,2]
[327261819,1715945443513,-500.0,0.00012779,2]
[327261820,1715945443522,-662.79,0.00012779,2]
[327261821,1715945443531,-1722.82,0.00012779,2]
[327261822,1715945443541,-500.0,0.00012779,2]
[327261823,1715945443550,-500.0,0.00012779,2]
[327261824,1715945443560,-500.0,0.00012779,2]
[327261825,1715945443569,-500.0,0.00012779,2]
[327261826,1715945443579,-500.0,0.00012779,2]
[327261827,1715945443588,-500.0,0.00012779,2]
[327261828,1715945443597,-500.0,0.00012779,2]
[327261829,1715945443607,-500.0,0.00012779,2]
[327261830,1715945443616,-500.0,0.00012779,2]
[327261831,1715945443626,-500.0,0.00012779,2]
[327261832,1715945443635,-500.0,0.00012779,2]
[327261833,1715945443644,-500.0,0.00012779,2]
[327261834,1715945443653,-500.0,0.00012779,2]
[327261835,1715945443663,-505.43,0.00012779,2]
[327261836,1715945443672,-500.0,0.00012779,2]
[327261837,1715945443681,-500.0,0.00012779,2]
[327261838,1715945443691,-500.0,0.00012779,2]
[327261839,1715945443700,-636.92,0.00012779,2]
[327261840,1715945443710,-500.0,0.00012779,2]
[327261841,1715945443720,-500.0,0.00012779,2]
[327261842,1715945443731,-500.0,0.00012779,2]
[327261843,1715945443740,-380.44,0.00012779,2]
[327261844,1715945443750,-660.18,0.00012779,2]
[327261845,1715945443759,-500.0,0.00012779,2]
[327261846,1715945443769,-500.0,0.00012779,2]
[327261847,1715945443778,-500.0,0.00012779,2]
[327261848,1715945443787,-484.00681849,0.00012779,2]
[327261849,1715945443796,-500.0,0.00012779,2]
[327261850,1715945443806,-500.0,0.00012779,2]
[327261851,1715945443816,-500.0,0.00012779,2]
[327261852,1715945443825,-110003.8486,0.0001278,2]
[327261853,1715945443834,-1000.0,0.0001278,2]
[327261854,1715945443843,-153.55874553,0.00012781,2]
[327261855,1715945443853,-1000.0,0.0001279,2]
[327261856,1715945443864,-3675.403,0.00012792,2]
[327261857,1715945443874,-407.384,0.00012792,2]
[327261858,1715945443883,-808.0,0.00012792,2]
[327261859,1715945443895,-173.089,0.00012792,2]
[327261860,1715945443904,-596.191,0.00012792,2]
[327261861,1715945443914,-1399.0,0.00012792,2]